[Event "December 19 Early 2023"]
[Site "https://www.chess.com"]
[Date "2023.12.19"]
[Round "7"]
[White "Miszler, Levente"]
[Black "Burovic, Rijad"]
[Result "0-1"]
[Board "88"]
[TimeControl "180+1"]
[WhiteFideId "763276"]
[BlackFideId "14407701"]
[WhiteElo "2186"]
[BlackElo "2384"]
[WhiteTeam "HUN"]
[BlackTeam "BIH"]
[WhiteClock "0:00:56"]
[BlackClock "0:00:37"]

1. Nf3 {[%clk 0:03:00]}  g6 {[%clk 0:02:57]} 2. c4 {[%clk 0:02:58]}  Bg7 {[%clk 0:02:26]} 3. g3 {[%clk 0:02:59]}  d6 {[%clk 0:02:24]} 4. Bg2 {[%clk 0:02:59]}  e5 {[%clk 0:02:25]} 5. O-O {[%clk 0:02:59]}  Nc6 {[%clk 0:02:25]} 6. Nc3 {[%clk 0:02:59]}  f5 {[%clk 0:02:25]} 7. d3 {[%clk 0:02:59]}  Nf6 {[%clk 0:02:25]} 8. Rb1 {[%clk 0:02:59]}  O-O {[%clk 0:02:26]} 9. b4 {[%clk 0:02:59]}  h6 {[%clk 0:02:26]} 10. b5 {[%clk 0:03:00]}  Ne7 {[%clk 0:02:27]} 11. a4 {[%clk 0:03:00]}  Be6 {[%clk 0:02:27]} 12. Ba3 {[%clk 0:03:01]}  g5 {[%clk 0:02:25]} 13. Nd2 {[%clk 0:03:01]}  Rb8 {[%clk 0:02:24]} 14. a5 {[%clk 0:02:52]}  Rf7 {[%clk 0:02:03]} 15. b6 {[%clk 0:02:50]}  axb6 {[%clk 0:02:00]} 16. axb6 {[%clk 0:02:51]}  c5 {[%clk 0:02:00]} 17. Nb5 {[%clk 0:02:49]}  Ne8 {[%clk 0:01:56]} 18. Qa4 {[%clk 0:02:40]}  Nc6 {[%clk 0:01:48]} 19. Na7 {[%clk 0:02:32]}  Ne7 {[%clk 0:01:26]} 20. Nb3 {[%clk 0:02:07]}  Bd7 {[%clk 0:01:21]} 21. Qa5 {[%clk 0:01:59]}  Nc6 {[%clk 0:01:21]} 22. Nxc6 {[%clk 0:01:59]}  Bxc6 {[%clk 0:01:15]} 23. Bxc6 {[%clk 0:01:58]}  bxc6 {[%clk 0:01:15]} 24. Nd2 {[%clk 0:01:54]}  e4 {[%clk 0:01:06]} 25. dxe4 {[%clk 0:01:23]}  Ra8 {[%clk 0:01:03]} 26. b7 {[%clk 0:01:23]}  Qxa5 {[%clk 0:01:03]} 27. b8=Q {[%clk 0:01:22]}  Rxb8 {[%clk 0:01:03]} 28. Rxb8 {[%clk 0:01:22]}  Qxd2 {[%clk 0:00:56]} 29. Rxe8+ {[%clk 0:01:21]}  Kh7 {[%clk 0:00:49]} 30. exf5 {[%clk 0:01:20]}  Rxf5 {[%clk 0:00:47]} 31. Re7 {[%clk 0:01:16]}  Kg6 {[%clk 0:00:46]} 32. Rb1 {[%clk 0:01:08]}  Bd4 {[%clk 0:00:44]} 33. Rf1 {[%clk 0:00:56]}  Rxf2 {[%clk 0:00:37]} 0-1

[Event "December 19 Early 2023"]
[Site "https://www.chess.com"]
[Date "2023.12.19"]
[Round "7"]
[White "DeyanKostov"]
[Black "Caruana, Fabiano"]
[Result "0-1"]
[Board "90"]
[TimeControl "180+1"]
[BlackFideId "2020009"]
[WhiteElo "2476"]
[BlackElo "2815"]
[BlackTeam "USA"]
[WhiteClock "0:00:03"]
[BlackClock "0:00:08"]

1. d4 {[%clk 0:03:00]}  c5 {[%clk 0:03:00]} 2. d5 {[%clk 0:03:00]}  e5 {[%clk 0:03:00]} 3. c4 {[%clk 0:03:00]}  d6 {[%clk 0:03:01]} 4. Nc3 {[%clk 0:03:00]}  Be7 {[%clk 0:03:01]} 5. Nf3 {[%clk 0:02:56]}  f5 {[%clk 0:03:00]} 6. e4 {[%clk 0:02:56]}  f4 {[%clk 0:03:00]} 7. h3 {[%clk 0:02:55]}  Nf6 {[%clk 0:02:58]} 8. Be2 {[%clk 0:02:55]}  O-O {[%clk 0:02:58]} 9. Bd2 {[%clk 0:02:55]}  Bd7 {[%clk 0:02:54]} 10. Qc2 {[%clk 0:02:54]}  Na6 {[%clk 0:02:53]} 11. a3 {[%clk 0:02:54]}  Nc7 {[%clk 0:02:54]} 12. Bd3 {[%clk 0:02:48]}  Qe8 {[%clk 0:02:53]} 13. a4 {[%clk 0:02:44]}  Na6 {[%clk 0:02:52]} 14. Nb5 {[%clk 0:02:44]}  Qg6 {[%clk 0:02:45]} 15. Rg1 {[%clk 0:02:41]}  Qh5 {[%clk 0:02:42]} 16. Be2 {[%clk 0:02:38]}  Qg6 {[%clk 0:02:42]} 17. Bd3 {[%clk 0:02:38]}  Rfc8 {[%clk 0:02:37]} 18. g4 {[%clk 0:02:22]}  Nb4 {[%clk 0:02:26]} 19. Bxb4 {[%clk 0:02:21]}  cxb4 {[%clk 0:02:27]} 20. Nbd4 {[%clk 0:02:08]}  Qe8 {[%clk 0:02:09]} 21. Nf5 {[%clk 0:02:03]}  Bxf5 {[%clk 0:02:10]} 22. gxf5 {[%clk 0:02:03]}  Nd7 {[%clk 0:02:08]} 23. b3 {[%clk 0:02:01]}  Nc5 {[%clk 0:02:03]} 24. Qd1 {[%clk 0:01:58]}  Qh5 {[%clk 0:02:02]} 25. Bc2 {[%clk 0:01:55]}  Kh8 {[%clk 0:01:56]} 26. Ke2 {[%clk 0:01:53]}  Rg8 {[%clk 0:01:55]} 27. Qf1 {[%clk 0:01:46]}  Bd8 {[%clk 0:01:43]} 28. Rg4 {[%clk 0:01:42]}  Nd7 {[%clk 0:01:43]} 29. Qg2 {[%clk 0:01:38]}  Nf6 {[%clk 0:01:40]} 30. Rg5 {[%clk 0:01:35]}  Qf7 {[%clk 0:01:37]} 31. Rg1 {[%clk 0:01:32]}  a6 {[%clk 0:01:34]} 32. h4 {[%clk 0:01:29]}  b5 {[%clk 0:01:34]} 33. h5 {[%clk 0:01:27]}  bxc4 {[%clk 0:01:32]} 34. h6 {[%clk 0:01:11]}  gxh6 {[%clk 0:01:31]} 35. Rxg8+ {[%clk 0:01:10]}  Qxg8 {[%clk 0:01:26]} 36. Qh3 {[%clk 0:01:00]}  Qf8 {[%clk 0:01:26]} 37. bxc4 {[%clk 0:00:58]}  Rc8 {[%clk 0:01:16]} 38. Nd2 {[%clk 0:00:58]}  Bb6 {[%clk 0:01:13]} 39. Bd3 {[%clk 0:00:55]}  a5 {[%clk 0:01:12]} 40. Qh4 {[%clk 0:00:46]}  Rc7 {[%clk 0:01:08]} 41. Nf3 {[%clk 0:00:38]}  Rb7 {[%clk 0:01:01]} 42. Nd2 {[%clk 0:00:36]}  Rc7 {[%clk 0:00:58]} 43. Nf3 {[%clk 0:00:36]}  Rb7 {[%clk 0:00:44]} 44. Nd2 {[%clk 0:00:36]}  Bd8 {[%clk 0:00:45]} 45. Qh3 {[%clk 0:00:27]}  b3 {[%clk 0:00:41]} 46. Rb1 {[%clk 0:00:26]}  b2 {[%clk 0:00:41]} 47. Bc2 {[%clk 0:00:21]}  h5 {[%clk 0:00:27]} 48. Nb3 {[%clk 0:00:18]}  Qg7 {[%clk 0:00:27]} 49. Rxb2 {[%clk 0:00:16]}  Qg4+ {[%clk 0:00:27]} 50. Qf3 {[%clk 0:00:16]}  Rb4 {[%clk 0:00:24]} 51. Bd3 {[%clk 0:00:12]}  Bb6 {[%clk 0:00:21]} 52. Bc2 {[%clk 0:00:09]}  Rxc4 {[%clk 0:00:20]} 53. Nd2 {[%clk 0:00:08]}  Rc8 {[%clk 0:00:11]} 54. Bd3 {[%clk 0:00:06]}  Bd4 {[%clk 0:00:10]} 55. Rb7 {[%clk 0:00:06]}  Rc3 {[%clk 0:00:09]} 56. Rb3 {[%clk 0:00:03]}  Rc1 {[%clk 0:00:07]} 57. Rb8+ {[%clk 0:00:02]}  Kg7 {[%clk 0:00:07]} 58. Rb7+ {[%clk 0:00:03]}  Kh6 {[%clk 0:00:07]} 59. Rb3 {[%clk 0:00:04]}  Kg5 {[%clk 0:00:07]} 60. Qxg4+ {[%clk 0:00:03]}  hxg4 {[%clk 0:00:07]} 61. Bb5 {[%clk 0:00:03]}  f3+ {[%clk 0:00:07]} 62. Nxf3+ {[%clk 0:00:02]}  gxf3+ {[%clk 0:00:07]} 63. Rxf3 {[%clk 0:00:03]}  Ng4 {[%clk 0:00:08]} 64. Rg3 {[%clk 0:00:04]}  Rc2+ {[%clk 0:00:08]} 65. Kf1 {[%clk 0:00:03]}  Rxf2+ {[%clk 0:00:08]} 66. Ke1 {[%clk 0:00:04]}  h5 {[%clk 0:00:08]} 67. f6 {[%clk 0:00:04]}  Rxf6 {[%clk 0:00:08]} 68. Bd7 {[%clk 0:00:03]}  Rf4 {[%clk 0:00:09]} 69. Bf5 {[%clk 0:00:03]}  h4 {[%clk 0:00:08]} 70. Ke2 {[%clk 0:00:03]}  hxg3 {[%clk 0:00:08]} 0-1

[Event "December 19 Early 2023"]
[Site "https://www.chess.com"]
[Date "2023.12.19"]
[Round "7"]
[White "Khumalo, Keith"]
[Black "Himanshu, Sharma"]
[Result "1-0"]
[Board "95"]
[TimeControl "180+1"]
[WhiteFideId "14319470"]
[BlackFideId "5007836"]
[WhiteElo "2093"]
[BlackElo "2307"]
[WhiteTeam "RSA"]
[BlackTeam "IND"]
[WhiteClock "0:01:12"]
[BlackClock "0:00:03"]

1. d4 {[%clk 0:03:00]}  Nf6 {[%clk 0:02:59]} 2. c4 {[%clk 0:03:01]}  e6 {[%clk 0:03:00]} 3. Nf3 {[%clk 0:03:01]}  Bb4+ {[%clk 0:03:00]} 4. Bd2 {[%clk 0:03:01]}  Be7 {[%clk 0:03:00]} 5. g3 {[%clk 0:03:01]}  O-O {[%clk 0:03:01]} 6. Bg2 {[%clk 0:03:02]}  d5 {[%clk 0:03:01]} 7. Qc2 {[%clk 0:03:02]}  Nbd7 {[%clk 0:03:00]} 8. O-O {[%clk 0:03:02]}  c5 {[%clk 0:02:59]} 9. cxd5 {[%clk 0:03:00]}  Nxd5 {[%clk 0:02:59]} 10. e4 {[%clk 0:02:59]}  N5f6 {[%clk 0:02:55]} 11. Rd1 {[%clk 0:02:55]}  Qb6 {[%clk 0:02:49]} 12. Be3 {[%clk 0:02:50]}  Ng4 {[%clk 0:02:40]} 13. Nc3 {[%clk 0:02:22]}  Nxe3 {[%clk 0:02:39]} 14. fxe3 {[%clk 0:02:22]}  Qa5 {[%clk 0:02:29]} 15. a3 {[%clk 0:02:22]}  a6 {[%clk 0:02:22]} 16. e5 {[%clk 0:02:21]}  Rb8 {[%clk 0:02:15]} 17. Ne4 {[%clk 0:02:21]}  cxd4 {[%clk 0:02:12]} 18. exd4 {[%clk 0:02:22]}  Nb6 {[%clk 0:02:06]} 19. Nfg5 {[%clk 0:02:20]}  g6 {[%clk 0:01:55]} 20. Qc7 {[%clk 0:02:17]}  Bxg5 {[%clk 0:01:39]} 21. Nxg5 {[%clk 0:02:12]}  Ra8 {[%clk 0:01:32]} 22. Ne4 {[%clk 0:02:03]}  Qb5 {[%clk 0:01:14]} 23. Nf6+ {[%clk 0:01:48]}  Kg7 {[%clk 0:01:13]} 24. Qc1 {[%clk 0:01:45]}  Nd7 {[%clk 0:01:06]} 25. Qg5 {[%clk 0:01:36]}  Nxf6 {[%clk 0:00:59]} 26. exf6+ {[%clk 0:01:34]}  Kh8 {[%clk 0:00:57]} 27. Qxb5 {[%clk 0:01:25]}  axb5 {[%clk 0:00:57]} 28. Rac1 {[%clk 0:01:25]}  Ra4 {[%clk 0:00:36]} 29. Rc7 {[%clk 0:01:18]}  Rc4 {[%clk 0:00:35]} 30. Rc1 {[%clk 0:01:15]}  Rxc1+ {[%clk 0:00:28]} 31. Rxc1 {[%clk 0:01:16]}  Bd7 {[%clk 0:00:18]} 32. Rc7 {[%clk 0:01:16]}  Rd8 {[%clk 0:00:18]} 33. Bxb7 {[%clk 0:01:15]}  Be8 {[%clk 0:00:17]} 34. Kf2 {[%clk 0:01:15]}  h6 {[%clk 0:00:18]} 35. Ke3 {[%clk 0:01:15]}  Kg8 {[%clk 0:00:18]} 36. h4 {[%clk 0:01:14]}  Kf8 {[%clk 0:00:18]} 37. g4 {[%clk 0:01:14]}  Rd7 {[%clk 0:00:17]} 38. Rxd7 {[%clk 0:01:14]}  Bxd7 {[%clk 0:00:18]} 39. g5 {[%clk 0:01:14]}  hxg5 {[%clk 0:00:17]} 40. hxg5 {[%clk 0:01:15]}  Ke8 {[%clk 0:00:18]} 41. Kd3 {[%clk 0:01:15]}  Kd8 {[%clk 0:00:18]} 42. Kc3 {[%clk 0:01:16]}  Kc7 {[%clk 0:00:19]} 43. Be4 {[%clk 0:01:16]}  Kb6 {[%clk 0:00:19]} 44. Bxg6 {[%clk 0:01:16]}  Be8 {[%clk 0:00:17]} 45. Bh7 {[%clk 0:01:13]}  Kc7 {[%clk 0:00:16]} 46. Kb4 {[%clk 0:01:13]}  Kd6 {[%clk 0:00:16]} 47. Bg8 {[%clk 0:01:13]}  e5 {[%clk 0:00:14]} 48. g6 {[%clk 0:01:11]}  Ke6 {[%clk 0:00:05]} 49. gxf7 {[%clk 0:01:11]}  Bxf7 {[%clk 0:00:05]} 50. Bxf7+ {[%clk 0:01:11]}  Kxf7 {[%clk 0:00:06]} 51. dxe5 {[%clk 0:01:11]}  Ke6 {[%clk 0:00:03]} 52. Kxb5 {[%clk 0:01:12]} 1-0

[Event "December 19 Early 2023"]
[Site "https://www.chess.com"]
[Date "2023.12.19"]
[Round "7"]
[White "Sipila, Vilka"]
[Black "Herman, Daniel"]
[Result "1-0"]
[Board "96"]
[TimeControl "180+1"]
[WhiteFideId "505455"]
[BlackFideId "30935008"]
[WhiteElo "2343"]
[BlackElo "1897"]
[WhiteTeam "FIN"]
[BlackTeam "USA"]
[WhiteClock "0:02:38"]
[BlackClock "0:01:09"]

1. e4 {[%clk 0:03:00]}  e6 {[%clk 0:03:00]} 2. d4 {[%clk 0:03:00]}  d5 {[%clk 0:03:00]} 3. e5 {[%clk 0:03:00]}  c5 {[%clk 0:03:00]} 4. c3 {[%clk 0:03:00]}  Nc6 {[%clk 0:03:00]} 5. Nf3 {[%clk 0:03:01]}  Bd7 {[%clk 0:03:00]} 6. Be2 {[%clk 0:03:01]}  Nh6 {[%clk 0:02:04]} 7. O-O {[%clk 0:03:00]}  Nf5 {[%clk 0:02:03]} 8. dxc5 {[%clk 0:02:59]}  Bxc5 {[%clk 0:02:03]} 9. b4 {[%clk 0:02:59]}  Bb6 {[%clk 0:01:55]} 10. Bd3 {[%clk 0:02:52]}  Nh4 {[%clk 0:01:37]} 11. Re1 {[%clk 0:02:45]}  O-O {[%clk 0:01:29]} 12. Bxh7+ {[%clk 0:02:39]}  Kxh7 {[%clk 0:01:20]} 13. Ng5+ {[%clk 0:02:40]}  Kg6 {[%clk 0:01:18]} 14. Qg4 {[%clk 0:02:40]}  Rh8 {[%clk 0:01:12]} 15. Nxe6+ {[%clk 0:02:39]}  Kh7 {[%clk 0:01:09]} 16. Qxg7# {[%clk 0:02:38]} 1-0

[Event "December 19 Early 2023"]
[Site "https://www.chess.com"]
[Date "2023.12.19"]
[Round "7"]
[White "Kovalyov, Eduard"]
[Black "Antunez Soler, Luis"]
[Result "1-0"]
[Board "98"]
[TimeControl "180+1"]
[WhiteFideId "14118033"]
[BlackFideId "3513335"]
[WhiteElo "2300"]
[BlackElo "2154"]
[WhiteTeam "UKR"]
[BlackTeam "CUB"]
[WhiteClock "0:00:05"]
[BlackClock "0:00:18"]

1. Nf3 {[%clk 0:02:55]}  d5 {[%clk 0:02:59]} 2. d4 {[%clk 0:02:55]}  Nf6 {[%clk 0:02:59]} 3. c4 {[%clk 0:02:56]}  c6 {[%clk 0:02:59]} 4. Qc2 {[%clk 0:02:56]}  dxc4 {[%clk 0:02:59]} 5. Qxc4 {[%clk 0:02:56]}  Bg4 {[%clk 0:03:00]} 6. Nbd2 {[%clk 0:02:53]}  Nbd7 {[%clk 0:03:00]} 7. g3 {[%clk 0:02:53]}  e6 {[%clk 0:03:00]} 8. Bg2 {[%clk 0:02:53]}  Be7 {[%clk 0:03:00]} 9. O-O {[%clk 0:02:53]}  O-O {[%clk 0:03:00]} 10. h3 {[%clk 0:02:52]}  Bh5 {[%clk 0:03:00]} 11. Re1 {[%clk 0:02:50]}  Rc8 {[%clk 0:02:55]} 12. Qb3 {[%clk 0:02:44]}  Qb6 {[%clk 0:02:51]} 13. Qxb6 {[%clk 0:02:43]}  axb6 {[%clk 0:02:44]} 14. Nc4 {[%clk 0:02:40]}  b5 {[%clk 0:02:43]} 15. Nce5 {[%clk 0:02:41]}  Nb6 {[%clk 0:02:41]} 16. Bg5 {[%clk 0:02:25]}  Rfd8 {[%clk 0:02:37]} 17. e3 {[%clk 0:02:23]}  Nbd5 {[%clk 0:02:33]} 18. g4 {[%clk 0:02:19]}  Bg6 {[%clk 0:02:30]} 19. Nxg6 {[%clk 0:02:20]}  hxg6 {[%clk 0:02:31]} 20. Ne5 {[%clk 0:02:19]}  b4 {[%clk 0:02:21]} 21. Nc4 {[%clk 0:02:07]}  Ra8 {[%clk 0:02:19]} 22. e4 {[%clk 0:01:41]}  Nc7 {[%clk 0:02:17]} 23. e5 {[%clk 0:01:41]}  Nfd5 {[%clk 0:02:14]} 24. Bxe7 {[%clk 0:01:41]}  Nxe7 {[%clk 0:02:13]} 25. Nd6 {[%clk 0:01:42]}  Ra7 {[%clk 0:02:09]} 26. a4 {[%clk 0:01:38]}  Ne8 {[%clk 0:02:05]} 27. Nxe8 {[%clk 0:01:28]}  Rxe8 {[%clk 0:02:06]} 28. b3 {[%clk 0:01:27]}  Rd8 {[%clk 0:02:06]} 29. Red1 {[%clk 0:01:26]}  Ra5 {[%clk 0:01:53]} 30. Rac1 {[%clk 0:01:21]}  Nd5 {[%clk 0:01:47]} 31. Rc4 {[%clk 0:01:15]}  Nc3 {[%clk 0:01:16]} 32. Re1 {[%clk 0:01:11]}  Rd7 {[%clk 0:01:03]} 33. Rxb4 {[%clk 0:01:06]}  Nd5 {[%clk 0:01:03]} 34. Bxd5 {[%clk 0:01:05]}  Raxd5 {[%clk 0:01:04]} 35. Re4 {[%clk 0:01:04]}  Kf8 {[%clk 0:01:02]} 36. g5 {[%clk 0:00:55]}  Ke7 {[%clk 0:01:02]} 37. h4 {[%clk 0:00:55]}  Kd8 {[%clk 0:01:02]} 38. Kg2 {[%clk 0:00:53]}  Kc7 {[%clk 0:01:02]} 39. Kf3 {[%clk 0:00:52]}  Rd8 {[%clk 0:01:00]} 40. Ke3 {[%clk 0:00:50]}  R8d7 {[%clk 0:01:00]} 41. Rf4 {[%clk 0:00:48]}  Kb8 {[%clk 0:00:58]} 42. Rc4 {[%clk 0:00:45]}  Ka7 {[%clk 0:00:58]} 43. b4 {[%clk 0:00:44]}  Kb6 {[%clk 0:00:58]} 44. Rc5 {[%clk 0:00:41]}  Rxc5 {[%clk 0:00:56]} 45. dxc5+ {[%clk 0:00:37]}  Kc7 {[%clk 0:00:56]} 46. Rd4 {[%clk 0:00:32]}  Re7 {[%clk 0:00:56]} 47. Rd6 {[%clk 0:00:30]}  Re8 {[%clk 0:00:56]} 48. Rd4 {[%clk 0:00:29]}  Ra8 {[%clk 0:00:51]} 49. Rf4 {[%clk 0:00:27]}  Rf8 {[%clk 0:00:51]} 50. Kd3 {[%clk 0:00:24]}  Kd7 {[%clk 0:00:51]} 51. Kc4 {[%clk 0:00:24]}  Ke7 {[%clk 0:00:52]} 52. b5 {[%clk 0:00:23]}  Ra8 {[%clk 0:00:52]} 53. Kb4 {[%clk 0:00:23]}  Rd8 {[%clk 0:00:52]} 54. Ka5 {[%clk 0:00:18]}  Rd5 {[%clk 0:00:48]} 55. Kb6 {[%clk 0:00:17]}  cxb5 {[%clk 0:00:47]} 56. axb5 {[%clk 0:00:15]}  Rd7 {[%clk 0:00:45]} 57. c6 {[%clk 0:00:14]}  bxc6 {[%clk 0:00:45]} 58. Kxc6 {[%clk 0:00:11]}  Rd1 {[%clk 0:00:46]} 59. b6 {[%clk 0:00:11]}  Rb1 {[%clk 0:00:47]} 60. Kb7 {[%clk 0:00:12]}  Rb2 {[%clk 0:00:44]} 61. Kc7 {[%clk 0:00:11]}  Rc2+ {[%clk 0:00:44]} 62. Kb8 {[%clk 0:00:11]}  Rb2 {[%clk 0:00:43]} 63. b7 {[%clk 0:00:12]}  Ke8 {[%clk 0:00:42]} 64. Ra4 {[%clk 0:00:10]}  Kd7 {[%clk 0:00:40]} 65. Ka7 {[%clk 0:00:09]}  Kc6 {[%clk 0:00:39]} 66. Rc4+ {[%clk 0:00:09]}  Kd5 {[%clk 0:00:39]} 67. Ra4 {[%clk 0:00:05]}  Kc6 {[%clk 0:00:39]} 68. Rc4+ {[%clk 0:00:04]}  Kd5 {[%clk 0:00:39]} 69. Rc8 {[%clk 0:00:03]}  Ra2+ {[%clk 0:00:39]} 70. Kb6 {[%clk 0:00:03]}  Rb2+ {[%clk 0:00:39]} 71. Kc7 {[%clk 0:00:03]}  Kxe5 {[%clk 0:00:32]} 72. b8=Q {[%clk 0:00:03]}  Rd2 {[%clk 0:00:29]} 73. Qb6 {[%clk 0:00:03]}  Kf5 {[%clk 0:00:26]} 74. Qe3 {[%clk 0:00:03]}  Rd5 {[%clk 0:00:25]} 75. Rf8 {[%clk 0:00:03]}  f6 {[%clk 0:00:25]} 76. gxf6 {[%clk 0:00:04]}  gxf6 {[%clk 0:00:25]} 77. Rf7 {[%clk 0:00:04]}  e5 {[%clk 0:00:23]} 78. Qf3+ {[%clk 0:00:05]}  Ke6 {[%clk 0:00:18]} 79. Qxd5+ {[%clk 0:00:05]} 1-0

[Event "December 19 Early 2023"]
[Site "https://www.chess.com"]
[Date "2023.12.19"]
[Round "7"]
[White "Gutierrez Olivares, Daniel"]
[Black "Dowgird, Filip"]
[Result "1-0"]
[Board "104"]
[TimeControl "180+1"]
[WhiteFideId "2264005"]
[BlackFideId "1121235"]
[WhiteElo "2317"]
[BlackElo "2248"]
[WhiteTeam "ESP"]
[BlackTeam "POL"]
[WhiteClock "0:00:06"]
[BlackClock "0:00:04"]

1. Nf3 {[%clk 0:02:52]}  d6 {[%clk 0:02:59]} 2. g3 {[%clk 0:02:53]}  e5 {[%clk 0:02:58]} 3. d3 {[%clk 0:02:54]}  Nf6 {[%clk 0:02:58]} 4. Nbd2 {[%clk 0:02:55]}  Be7 {[%clk 0:02:59]} 5. e4 {[%clk 0:02:55]}  O-O {[%clk 0:02:59]} 6. Bg2 {[%clk 0:02:56]}  Nbd7 {[%clk 0:03:00]} 7. O-O {[%clk 0:02:57]}  c6 {[%clk 0:03:00]} 8. c3 {[%clk 0:02:58]}  a5 {[%clk 0:03:00]} 9. Qc2 {[%clk 0:02:58]}  Re8 {[%clk 0:03:00]} 10. a4 {[%clk 0:02:59]}  h6 {[%clk 0:03:00]} 11. Nc4 {[%clk 0:02:59]}  Bf8 {[%clk 0:02:57]} 12. Bd2 {[%clk 0:02:59]}  d5 {[%clk 0:02:53]} 13. exd5 {[%clk 0:02:59]}  Nxd5 {[%clk 0:02:53]} 14. Rfe1 {[%clk 0:02:59]}  f6 {[%clk 0:02:38]} 15. d4 {[%clk 0:02:52]}  exd4 {[%clk 0:02:39]} 16. Rxe8 {[%clk 0:02:47]}  Qxe8 {[%clk 0:02:39]} 17. Nxd4 {[%clk 0:02:47]}  Ne5 {[%clk 0:02:35]} 18. Re1 {[%clk 0:02:43]}  Qh5 {[%clk 0:02:30]} 19. Nxe5 {[%clk 0:02:17]}  fxe5 {[%clk 0:02:29]} 20. Nf3 {[%clk 0:02:16]}  Bf5 {[%clk 0:02:23]} 21. Qb3 {[%clk 0:02:11]}  e4 {[%clk 0:02:23]} 22. Nd4 {[%clk 0:02:08]}  Re8 {[%clk 0:02:02]} 23. Qxb7 {[%clk 0:02:01]}  Bg6 {[%clk 0:01:52]} 24. Qxc6 {[%clk 0:01:54]}  Nf6 {[%clk 0:01:52]} 25. Qb5 {[%clk 0:01:49]}  Re5 {[%clk 0:01:51]} 26. Qe2 {[%clk 0:01:44]}  Ng4 {[%clk 0:01:31]} 27. h3 {[%clk 0:01:42]}  e3 {[%clk 0:01:31]} 28. fxe3 {[%clk 0:01:32]}  Nf6 {[%clk 0:01:31]} 29. Qxh5 {[%clk 0:01:32]}  Nxh5 {[%clk 0:01:32]} 30. e4 {[%clk 0:01:18]}  Re8 {[%clk 0:01:26]} 31. Bf4 {[%clk 0:01:11]}  Nxf4 {[%clk 0:01:22]} 32. gxf4 {[%clk 0:01:09]}  Rb8 {[%clk 0:01:22]} 33. Re2 {[%clk 0:01:00]}  Be8 {[%clk 0:01:15]} 34. e5 {[%clk 0:00:52]}  Bxa4 {[%clk 0:01:15]} 35. Bd5+ {[%clk 0:00:52]}  Kh8 {[%clk 0:01:14]} 36. f5 {[%clk 0:00:49]}  Bc5 {[%clk 0:01:07]} 37. Bf7 {[%clk 0:00:44]}  Bb5 {[%clk 0:01:03]} 38. Rd2 {[%clk 0:00:42]}  a4 {[%clk 0:00:35]} 39. Kg2 {[%clk 0:00:41]}  Ba6 {[%clk 0:00:33]} 40. Ne6 {[%clk 0:00:29]}  Be7 {[%clk 0:00:26]} 41. Kg3 {[%clk 0:00:27]}  Bb5 {[%clk 0:00:16]} 42. Nf4 {[%clk 0:00:26]}  Bg5 {[%clk 0:00:14]} 43. Ng6+ {[%clk 0:00:22]}  Kh7 {[%clk 0:00:14]} 44. Rd6 {[%clk 0:00:14]}  h5 {[%clk 0:00:09]} 45. h4 {[%clk 0:00:13]}  Bc1 {[%clk 0:00:09]} 46. Ne7 {[%clk 0:00:11]}  Bxb2 {[%clk 0:00:08]} 47. Bg6+ {[%clk 0:00:10]}  Kh8 {[%clk 0:00:08]} 48. Bxh5 {[%clk 0:00:07]}  Bxc3 {[%clk 0:00:08]} 49. Kf4 {[%clk 0:00:07]}  Bd2+ {[%clk 0:00:09]} 50. Ke4 {[%clk 0:00:06]}  Be1 {[%clk 0:00:05]} 51. Bf7 {[%clk 0:00:05]}  a3 {[%clk 0:00:03]} 52. Ng6+ {[%clk 0:00:04]}  Kh7 {[%clk 0:00:03]} 53. h5 {[%clk 0:00:03]}  Bf1 {[%clk 0:00:03]} 54. Nf4 {[%clk 0:00:04]}  a2 {[%clk 0:00:04]} 55. Bxa2 {[%clk 0:00:04]}  Rb4+ {[%clk 0:00:03]} 56. Kf3 {[%clk 0:00:04]}  Bh4 {[%clk 0:00:02]} 57. Bf7 {[%clk 0:00:04]}  Bg5 {[%clk 0:00:02]} 58. Bg6+ {[%clk 0:00:04]}  Kh8 {[%clk 0:00:03]} 59. Ne6 {[%clk 0:00:05]}  Bh6 {[%clk 0:00:02]} 60. Rc6 {[%clk 0:00:04]}  Rb8 {[%clk 0:00:01]} 61. Rc7 {[%clk 0:00:03]}  Bb5 {[%clk 0:00:01]} 62. Nc5 {[%clk 0:00:03]}  Rf8 {[%clk 0:00:01]} 63. Ne4 {[%clk 0:00:03]}  Ba6 {[%clk 0:00:01]} 64. Nd6 {[%clk 0:00:04]}  Bd3 {[%clk 0:00:01]} 65. Nf7+ {[%clk 0:00:04]}  Kg8 {[%clk 0:00:02]} 66. e6 {[%clk 0:00:05]}  Ra8 {[%clk 0:00:02]} 67. Rd7 {[%clk 0:00:04]}  Bg5 {[%clk 0:00:02]} 68. Rxd3 {[%clk 0:00:04]}  Bf6 {[%clk 0:00:02]} 69. h6 {[%clk 0:00:04]}  Ra3 {[%clk 0:00:03]} 70. h7+ {[%clk 0:00:05]}  Kf8 {[%clk 0:00:03]} 71. h8=Q+ {[%clk 0:00:05]}  Ke7 {[%clk 0:00:04]} 72. Qd8# {[%clk 0:00:06]} 1-0

[Event "December 19 Early 2023"]
[Site "https://www.chess.com"]
[Date "2023.12.19"]
[Round "7"]
[White "Belov, Alexei"]
[Black "Ohler, Julius"]
[Result "1-0"]
[Board "109"]
[TimeControl "180+1"]
[WhiteFideId "4128206"]
[BlackFideId "16238982"]
[WhiteElo "2575"]
[BlackElo "2200"]
[WhiteTeam "RUS"]
[BlackTeam "GER"]
[WhiteClock "0:01:55"]
[BlackClock "0:01:20"]

1. e4 {[%clk 0:03:00]}  c6 {[%clk 0:03:00]} 2. d4 {[%clk 0:02:59]}  d5 {[%clk 0:03:00]} 3. Nd2 {[%clk 0:02:59]}  dxe4 {[%clk 0:03:00]} 4. Nxe4 {[%clk 0:03:00]}  Nf6 {[%clk 0:03:01]} 5. Nxf6+ {[%clk 0:03:00]}  exf6 {[%clk 0:03:02]} 6. c3 {[%clk 0:03:00]}  Bd6 {[%clk 0:03:02]} 7. Bd3 {[%clk 0:03:01]}  O-O {[%clk 0:03:03]} 8. Ne2 {[%clk 0:03:01]}  Re8 {[%clk 0:03:03]} 9. Qc2 {[%clk 0:03:02]}  h5 {[%clk 0:03:04]} 10. Be3 {[%clk 0:03:03]}  Nd7 {[%clk 0:03:03]} 11. O-O-O {[%clk 0:03:03]}  b5 {[%clk 0:03:03]} 12. d5 {[%clk 0:03:03]}  c5 {[%clk 0:03:02]} 13. Bxb5 {[%clk 0:03:03]}  Rb8 {[%clk 0:02:57]} 14. c4 {[%clk 0:03:03]}  a6 {[%clk 0:02:48]} 15. Ba4 {[%clk 0:03:03]}  Ne5 {[%clk 0:02:49]} 16. Bxe8 {[%clk 0:02:59]}  Qxe8 {[%clk 0:02:47]} 17. Rhe1 {[%clk 0:02:53]}  Rb4 {[%clk 0:02:43]} 18. b3 {[%clk 0:02:50]}  g6 {[%clk 0:02:31]} 19. Ng3 {[%clk 0:02:47]}  Qd8 {[%clk 0:02:30]} 20. Bd2 {[%clk 0:02:43]}  Rb7 {[%clk 0:02:28]} 21. f4 {[%clk 0:02:39]}  Ng4 {[%clk 0:02:00]} 22. Ne4 {[%clk 0:02:18]}  Nxh2 {[%clk 0:01:42]} 23. Bc3 {[%clk 0:02:07]}  Bxf4+ {[%clk 0:01:39]} 24. Kb2 {[%clk 0:02:07]}  Be5 {[%clk 0:01:35]} 25. Nxc5 {[%clk 0:02:02]}  Re7 {[%clk 0:01:33]} 26. d6 {[%clk 0:01:58]}  Re8 {[%clk 0:01:26]} 27. d7 {[%clk 0:01:56]}  Bxc3+ {[%clk 0:01:26]} 28. Qxc3 {[%clk 0:01:56]}  Rxe1 {[%clk 0:01:20]} 29. Qxe1 {[%clk 0:01:55]} 1-0